bitfinex/quotes_SOLUSD_20250612
["timestamp","ask_amount","ask_price","bid_price","bid_amount"]
[1749737467173,45.19966904,159.4,159.39,0.70736118]
[1749737467883,48.96378447,159.4,159.39,0.70736118]
[1749737468065,30.04843857,159.4,159.39,0.70736118]
[1749737468383,48.96378447,159.4,159.39,0.70736118]
[1749737470176,30.04843857,159.4,159.39,0.70736118]
[1749737470380,48.96378447,159.4,159.39,0.70736118]
[1749737472171,58.37407305,159.4,159.35,1.5625]
[1749737472373,0.28432314,159.38,159.35,1.5625]
[1749737474291,3.76482399,159.37,159.35,1.5625]
[1749737475590,22.68016989,159.37,159.35,1.5625]
[1749737475778,32.09222987,159.37,159.32,25.3188459]
[1749737475972,19.19966904,159.36,159.32,6.4035]
[1749737476181,22.68111505,159.33,159.32,6.4035]
[1749737476896,3.76576915,159.33,159.32,6.4035]
[1749737480171,3.76561299,159.34,159.32,25.3188459]
[1749737483002,3.76561299,159.34,159.32,6.4035]
[1749737483905,3.76561299,159.34,159.31,1.5549]
[1749737484102,19.19966904,159.33,159.31,1.5549]
[1749737485811,3.76600552,159.32,159.31,1.5549]
[1749737487611,3.76600552,159.32,159.31,20.4702459]
[1749737487905,3.76600552,159.32,159.31,1.5549]
[1749737488208,3.76576915,159.33,159.31,1.5549]
[1749737489708,168.29966904,159.32,159.28,6.1157]
[1749737489907,149.38432314,159.32,159.28,25.0310459]
[1749737490209,3.76624191,159.31,159.28,6.1157]
[1749737490502,3.76624191,159.31,159.3,18.9153459]
[1749737491208,152.86609286,159.32,159.3,18.9153459]
[1749737491420,152.86609286,159.32,159.31,18.9153459]
[1749737492082,152.86609286,159.32,159.3,18.9153459]
[1749737493113,149.1,159.32,159.3,18.9153459]
[1749737493488,152.86604158,159.32,159.3,18.9153459]
[1749737494191,149.1,159.32,159.31,18.9153459]
[1749737495914,3.76504065,159.37,159.31,20.5248459]
[1749737496121,3.76504065,159.37,159.34,18.9153459]
[1749737497421,3.76504065,159.37,159.35,18.9153459]
[1749737498323,3.76504065,159.37,159.31,1.6095]
[1749737498529,3.76504065,159.37,159.35,18.9153459]
[1749737500329,3.76504065,159.37,159.34,18.9153459]
[1749737500625,13.17710063,159.37,159.33,18.9153459]
[1749737501123,13.17710063,159.37,159.34,18.9153459]
[1749737503838,3.76504065,159.37,159.34,18.9153459]
[1749737505133,3.76504065,159.37,159.35,18.9153459]
[1749737507559,149.1,159.38,159.36,18.9153459]
[1749737507716,149.1,159.38,159.37,18.9153459]
[1749737507918,152.86458777,159.38,159.37,18.9153459]
[1749737508320,149.1,159.38,159.37,18.9153459]
[1749737508923,19.75712691,159.42,159.38,1.572]
[1749737509228,152.86343644,159.43,159.41,18.9153459]
[1749737509429,152.86343644,159.43,159.42,18.9153459]
[1749737510927,152.86343644,159.43,159.41,18.9153459]
[1749737511127,152.86343644,159.43,159.4,6.4547]
[1749737511330,152.86343644,159.43,159.41,18.9153459]
[1749737512924,152.86343644,159.43,159.42,18.9153459]
[1749737513831,152.86343644,159.43,159.4,6.4547]
[1749737514031,152.86343644,159.43,159.42,18.9153459]
[1749737514938,152.86343644,159.43,159.41,18.9153459]
[1749737515447,152.86343644,159.43,159.4,6.4547]
[1749737515643,152.86343644,159.43,159.41,18.9153459]
[1749737516149,152.86343644,159.43,159.4,6.4547]
[1749737516448,152.86343644,159.43,159.41,18.9153459]
[1749737517146,152.86343644,159.43,159.42,18.9153459]
[1749737519228,152.86343644,159.43,159.4,6.4547]
[1749737519427,152.86343644,159.43,159.42,18.9153459]
[1749737519842,152.86343644,159.43,159.4,6.4547]
[1749737520248,152.86343644,159.43,159.38,1.572]
[1749737520455,0.28432314,159.42,159.38,1.572]
[1749737520655,18.9153459,159.39,159.34,1.6268]
[1749737520966,18.9153459,159.38,159.34,20.5421459]
[1749737521145,18.9153459,159.39,159.35,18.9153459]
[1749737521454,0.28432314,159.39,159.35,18.9153459]
[1749737522021,3.76458777,159.38,159.35,18.9153459]
[1749737522242,3.76458777,159.38,159.34,1.6268]
[1749737522447,3.76458777,159.38,159.34,20.5421459]
[1749737522649,22.67993367,159.38,159.34,1.6268]
[1749737522857,22.67993367,159.38,159.33,18.9153459]
[1749737525454,3.76458777,159.38,159.35,18.9153459]
[1749737525637,3.76458777,159.38,159.36,18.9153459]
[1749737525839,149.1,159.39,159.32,6.4776]
[1749737526141,152.86450929,159.39,159.38,18.9153459]
[1749737526454,152.86450929,159.39,159.37,18.9153459]
[1749737526956,149.1,159.39,159.38,18.9153459]
[1749737527338,152.86435159,159.39,159.38,18.9153459]
[1749737527858,149.1,159.39,159.38,18.9153459]
[1749737528967,149.1,159.39,159.36,20.4777459]
[1749737529133,149.1,159.39,159.38,18.9153459]
[1749737530930,149.1,159.39,159.36,20.4777459]
[1749737531137,149.1,159.39,159.38,18.9153459]
[1749737531334,149.1,159.39,159.38,25.2288459]
[1749737531754,3.7626991,159.46,159.38,25.2288459]
[1749737532064,3.7626991,159.46,159.45,18.9153459]
[1749737532253,3.7626991,159.46,159.44,18.9153459]
[1749737532570,0.28432314,159.45,159.38,6.3135]
[1749737532853,3.76317109,159.44,159.42,18.9153459]
[1749737533036,3.76317109,159.44,159.38,6.3135]
[1749737533232,3.76317109,159.44,159.42,18.9153459]
[1749737534452,3.76317109,159.44,159.41,18.9153459]
[1749737535671,0.28432314,159.43,159.39,18.9153459]
[1749737535848,19.19966904,159.43,159.39,18.9153459]
[1749737536369,0.28432314,159.43,159.39,18.9153459]
[1749737537057,0.28432314,159.43,159.4,18.9153459]
[1749737537458,3.7636432,159.42,159.4,18.9153459]
[1749737538145,3.7636432,159.42,159.41,18.9153459]
[1749737540174,3.7636432,159.42,159.38,6.3135]
[1749737540363,3.7636432,159.42,159.41,18.9153459]
[1749737540567,3.7636432,159.42,159.4,18.9153459]
[1749737541183,3.76349675,159.43,159.41,18.9153459]
[1749737541855,3.76349675,159.43,159.4,18.9153459]
[1749737542657,3.76349675,159.43,159.41,18.9153459]
[1749737543457,3.76349675,159.43,159.38,6.3135]
[1749737543668,3.76349675,159.43,159.4,18.9153459]
[1749737544074,3.76349675,159.43,159.41,18.9153459]
[1749737547865,3.76349675,159.43,159.38,6.3135]
[1749737548073,3.76349675,159.43,159.41,18.9153459]
[1749737548270,149.1,159.44,159.42,18.9153459]
[1749737548462,149.1,159.44,159.43,18.9153459]
[1749737550479,149.1,159.44,159.41,1.595]
[1749737550675,149.1,159.44,159.43,18.9153459]
[1749737552269,149.1,159.5,159.43,18.9153459]
[1749737552459,149.1,159.5,159.46,18.9153459]
[1749737552984,0.28432314,159.49,159.46,18.9153459]
[1749737553276,4.04631448,159.49,159.45,18.9153459]
[1749737555053,4.04631448,159.49,159.46,18.9153459]
[1749737555876,4.04631448,159.49,159.41,1.595]
[1749737556081,4.04631448,159.49,159.46,18.9153459]
[1749737557273,4.04631448,159.49,159.41,1.595]
[1749737557581,4.04631448,159.49,159.46,18.9153459]
[1749737561778,168.0153459,159.5,159.48,18.9153459]
[1749737561779,152.86182556,159.5,159.48,18.9153459]
[1749737561977,152.86182556,159.5,159.49,18.9153459]
[1749737562370,152.86182556,159.5,159.48,18.9153459]
[1749737563489,149.1,159.5,159.48,18.9153459]
[1749737563670,149.38432314,159.5,159.49,18.9153459]
[1749737563869,153.14607862,159.5,159.49,18.9153459]
[1749737564089,149.1,159.5,159.49,18.9153459]
[1749737564297,149.1,159.5,159.47,1.666]
[1749737564497,149.1,159.5,159.49,18.9153459]
[1749737565497,149.1,159.5,159.47,1.666]
[1749737565693,149.1,159.5,159.49,18.9153459]
[1749737566673,149.1,159.5,159.47,1.666]
[1749737566674,153.14607862,159.5,159.47,1.666]
[1749737566886,153.14607862,159.5,159.48,18.9153459]
[1749737568375,153.14607862,159.5,159.47,1.666]
[1749737568578,153.14607862,159.5,159.48,18.9153459]
[1749737571079,153.14607862,159.5,159.49,18.9153459]
[1749737571399,149.1,159.5,159.49,18.9153459]
[1749737574000,152.861783,159.5,159.48,18.9153459]
[1749737574185,152.861783,159.5,159.47,20.5813459]
[1749737574589,152.861783,159.5,159.48,18.9153459]
[1749737575805,152.861783,159.5,159.47,1.666]
[1749737576006,152.861783,159.5,159.48,18.9153459]
[1749737577111,0.28432314,159.49,159.46,6.5132]
[1749737577410,0.28432314,159.49,159.43,1.5019]
[1749737577617,0.28432314,159.49,159.45,18.9153459]
[1749737577907,3.76222723,159.48,159.45,18.9153459]
[1749737578906,152.86184041,159.5,159.47,18.9153459]
[1749737579316,0.28432314,159.49,159.46,18.9153459]
[1749737580218,0.28432314,159.49,159.47,18.9153459]
[1749737580419,152.86184041,159.5,159.47,18.9153459]
[1749737580630,152.86184041,159.5,159.48,18.9153459]
[1749737581321,152.86184041,159.5,159.47,18.9153459]
[1749737582203,152.86184041,159.5,159.43,1.5019]
[1749737582409,152.86184041,159.5,159.47,18.9153459]
[1749737583417,152.86184041,159.5,159.48,18.9153459]
[1749737583607,149.1,159.5,159.49,18.9153459]
[1749737584122,3.76113997,159.53,159.49,18.9153459]
[1749737584322,4.04546311,159.53,159.48,6.2716]
[1749737584702,4.04546311,159.53,159.51,18.9153459]
[1749737586998,4.04546311,159.53,159.48,6.2716]
[1749737587218,4.04546311,159.53,159.51,18.9153459]
[1749737589219,4.04546311,159.53,159.48,6.2716]
[1749737589520,4.04546311,159.53,159.5,18.9153459]
[1749737591024,4.04546311,159.53,159.48,6.2716]
[1749737591215,4.04546311,159.53,159.5,18.9153459]
[1749737592502,4.04546311,159.53,159.51,18.9153459]
[1749737592906,3.76088748,159.54,159.52,18.9153459]
[1749737593133,3.76088748,159.54,159.49,1.6369]
[1749737593436,3.76088748,159.54,159.51,18.9153459]
[1749737593814,3.76088748,159.54,159.49,1.6369]
[1749737594022,3.76088748,159.54,159.51,18.9153459]
[1749737594421,149.1,159.55,159.53,18.9153459]
[1749737594735,3.76018622,159.57,159.54,18.9153459]
[1749737594924,158.49845154,159.61,159.5,26.04]
[1749737594925,3.75963406,159.59,159.5,26.04]
[1749737595248,0.14216157,159.56,159.49,1.6369]
[1749737595423,0.14216157,159.56,159.54,18.9153459]
[1749737595628,0.28432314,159.56,159.54,18.9153459]
[1749737596444,0.28432314,159.56,159.49,1.6369]
[1749737596751,0.28432314,159.56,159.53,18.9153459]
[1749737597235,3.76057662,159.55,159.52,18.9153459]
[1749737597412,3.76057662,159.55,159.53,18.9153459]
[1749737597618,4.04489976,159.55,159.54,18.9153459]
[1749737598034,4.04489976,159.55,159.53,18.9153459]
[1749737599933,4.04489976,159.55,159.54,18.9153459]
[1749737601718,4.04489976,159.55,159.49,1.6369]
[1749737601931,4.04489976,159.55,159.52,18.9153459]
[1749737602122,3.76042896,159.56,159.53,18.9153459]
[1749737602322,3.76042896,159.56,159.49,1.6369]
[1749737602540,3.76042896,159.56,159.54,18.9153459]
[1749737604746,3.76042896,159.56,159.49,1.6369]
[1749737604958,3.76042896,159.56,159.54,18.9153459]
[1749737605444,153.14448099,159.57,159.49,1.6369]
[1749737605643,153.14448099,159.57,159.54,18.9153459]
[1749737606543,149.1,159.57,159.56,18.9153459]
[1749737607062,18.9153459,159.61,159.56,18.9153459]
[1749737607063,3.75931628,159.61,159.56,18.9153459]
[1749737607224,3.75931628,159.61,159.58,18.9153459]
[1749737607642,0.28432314,159.6,159.55,1.5015]
[1749737607846,0.28432314,159.6,159.56,18.9153459]
[1749737608160,22.67466218,159.61,159.57,18.9153459]
[1749737608161,3.75931628,159.61,159.57,18.9153459]
[1749737608324,22.67466218,159.61,159.57,18.9153459]
[1749737608521,0.14216157,159.6,159.56,18.9153459]
[1749737608850,0.28432314,159.6,159.56,18.9153459]
[1749737609031,22.67497996,159.59,159.55,20.4168459]
[1749737609224,0.28432314,159.58,159.53,25.0978459]
[1749737609552,19.19966904,159.58,159.53,25.0978459]
[1749737609756,19.19966904,159.58,159.54,18.9153459]
[1749737610432,19.19966904,159.58,159.53,6.1825]
[1749737610637,19.19966904,159.58,159.54,18.9153459]
[1749737611437,3.76010528,159.57,159.54,18.9153459]
[1749737612647,3.76010528,159.57,159.53,25.0978459]
[1749737614451,0.28432314,159.56,159.51,1.6646]
[1749737614650,0.28432314,159.56,159.52,18.9153459]
[1749737615029,0.28432314,159.56,159.53,18.9153459]
[1749737615344,0.28432314,159.56,159.51,1.6646]
[1749737615544,3.76057662,159.55,159.53,18.9153459]
[1749737619170,3.76057662,159.55,159.51,1.6646]
[1749737619363,3.76057662,159.55,159.53,18.9153459]
[1749737620069,3.76057662,159.55,159.51,1.6646]
[1749737620271,3.76057662,159.55,159.53,18.9153459]
[1749737622062,4.0447262,159.56,159.53,18.9153459]
[1749737622773,4.0447262,159.56,159.52,25.0]
[1749737622976,4.0447262,159.56,159.53,18.9153459]
[1749737623178,4.0447262,159.56,159.51,1.6646]
[1749737623355,3.76010528,159.57,159.53,18.9153459]
[1749737625472,3.76010528,159.57,159.55,18.9153459]
[1749737625963,3.76010528,159.57,159.54,18.9153459]
[1749737627564,3.76010528,159.57,159.55,18.9153459]
[1749737628162,3.76010528,159.57,159.51,1.6646]
[1749737628363,3.76010528,159.57,159.55,18.9153459]
[1749737629171,3.76010528,159.57,159.51,1.6646]
[1749737629376,3.76010528,159.57,159.55,18.9153459]
[1749737629565,3.76010528,159.57,159.51,1.6646]
[1749737629771,3.76010528,159.57,159.53,18.9153459]
[1749737632486,3.76010528,159.57,159.51,1.6646]
[1749737632487,3.76010528,159.57,159.54,18.9153459]
[1749737632864,3.76010528,159.57,159.51,1.6646]
[1749737633065,3.76010528,159.57,159.54,18.9153459]
[1749737633283,3.76010528,159.57,159.52,25.0]
[1749737633460,3.76010528,159.57,159.54,18.9153459]
[1749737634656,3.76010528,159.57,159.53,18.9153459]
[1749737635068,3.76010528,159.57,159.54,18.9153459]
[1749737635671,3.76010528,159.57,159.53,18.9153459]
[1749737635888,3.76010528,159.57,159.51,1.6646]
[1749737636191,3.76010528,159.57,159.52,18.9153459]
[1749737636362,3.76010528,159.57,159.51,1.6646]
[1749737636561,3.76010528,159.57,159.56,18.9153459]
[1749737636969,3.75994033,159.58,159.56,18.9153459]
[1749737637377,149.1,159.59,159.57,18.9153459]
[1749737637687,149.1,159.59,159.58,18.9153459]
[1749737637865,3.75949449,159.6,159.58,18.9153459]
[1749737638067,3.75916295,159.61,159.58,18.9153459]
[1749737638970,3.75916295,159.61,159.57,18.9153459]
[1749737639169,3.75916295,159.61,159.54,6.2349]
[1749737639376,3.75916295,159.61,159.58,18.9153459]
[1749737641288,3.75916295,159.61,159.55,26.02]
[1749737641889,3.75916295,159.61,159.57,18.9153459]
[1749737642196,3.75916295,159.61,159.58,18.9153459]
[1749737642897,3.75916295,159.61,159.57,18.9153459]
[1749737643266,3.75916295,159.61,159.58,18.9153459]
[1749737643906,3.75916295,159.61,159.55,26.02]
[1749737644195,19.19966904,159.6,159.56,18.9153459]
[1749737644406,3.75963406,159.59,159.56,18.9153459]
[1749737645098,3.75963406,159.59,159.57,18.9153459]
[1749737645669,3.75963406,159.59,159.54,6.2349]
[1749737645974,3.75963406,159.59,159.58,18.9153459]
[1749737646180,4.04348609,159.61,159.57,18.9153459]
[1749737646381,4.04348609,159.61,159.58,18.9153459]
[1749737648071,4.04348609,159.61,159.54,6.2349]
[1749737648271,4.04348609,159.61,159.58,18.9153459]
[1749737648697,3.75916295,159.61,159.59,18.9153459]
[1749737648895,3.75916295,159.61,159.58,18.9153459]
[1749737649200,3.75916295,159.61,159.56,1.6291]
[1749737649495,3.75916295,159.61,159.57,18.9153459]
[1749737649691,3.75916295,159.61,159.58,18.9153459]
[1749737651284,3.75916295,159.61,159.58,12.05565076]
[1749737651783,3.75916295,159.61,159.59,12.05565076]
[1749737652175,3.75916295,159.61,159.58,12.05565076]
[1749737652914,152.85902563,159.62,159.58,12.05565076]
[1749737653210,152.85902563,159.62,159.56,1.6291]
[1749737653410,152.85902563,159.62,159.58,12.05565076]
[1749737654382,152.85902563,159.62,159.56,1.6291]
[1749737654601,149.1,159.62,159.56,1.6291]
[1749737654803,3.75798571,159.66,159.6,6.3207]
[1749737655109,149.18537842,159.67,159.6,6.3207]
[1749737655110,152.94317609,159.67,159.6,6.3207]
[1749737655421,0.28432314,159.65,159.6,6.3207]
[1749737655708,12.05565076,159.63,159.57,52.0]
[1749737655888,12.3399739,159.65,159.6,12.05565076]
[1749737656295,0.28432314,159.65,159.57,52.0]
[1749737656703,3.75845652,159.64,159.6,12.05565076]
[1749737656883,4.04261248,159.65,159.57,52.0]
[1749737657084,3.75828934,159.65,159.62,12.05565076]
[1749737657310,149.32753999,159.67,159.64,12.05565076]
[1749737657617,149.18537842,159.67,159.65,12.05565076]
[1749737657786,149.18537842,159.67,159.62,26.14]
[1749737658393,149.18537842,159.67,159.66,12.05565076]
[1749737659013,149.18537842,159.67,159.62,26.14]
[1749737659304,149.18537842,159.67,159.65,18.81779299]
[1749737659618,152.94313487,159.67,159.65,18.81779299]
[1749737659796,149.18537842,159.67,159.65,18.81779299]
[1749737659985,149.18537842,159.67,159.62,26.14]
[1749737660313,149.18537842,159.67,159.66,18.81779299]
[1749737660614,149.18537842,159.67,159.62,26.14]
[1749737660911,149.18537842,159.67,159.66,18.81779299]
[1749737661488,0.08537842,159.67,159.64,18.64964886]
[1749737661690,0.08537842,159.67,159.66,18.81779299]
[1749737662014,0.08537842,159.67,159.63,26.0]
[1749737662189,0.08537842,159.67,159.66,18.81779299]
[1749737662786,0.08537842,159.67,159.63,26.0]
[1749737663003,0.08537842,159.67,159.66,18.81779299]
[1749737663799,0.08537842,159.67,159.66,26.08]
[1749737664097,0.08537842,159.67,159.66,44.89779299]
[1749737665803,0.08537842,159.67,159.65,13.1]
[1749737666310,0.08537842,159.67,159.64,18.81779299]
[1749737668117,0.08537842,159.67,159.62,26.06]
[1749737668311,0.08537842,159.67,159.66,18.81779299]
[1749737669015,0.08537842,159.67,159.62,26.06]
[1749737669322,0.08537842,159.67,159.66,18.81779299]
[1749737669815,0.08537842,159.67,159.62,26.06]
[1749737670301,0.08537842,159.67,159.66,18.81779299]
[1749737670508,0.08537842,159.67,159.63,10.1]
[1749737670731,0.08537842,159.67,159.62,26.06]
[1749737670927,0.08537842,159.67,159.62,26.04]
[1749737671226,0.08537842,159.67,159.64,18.81779299]
[1749737672096,0.08537842,159.67,159.65,18.81779299]
[1749737672295,0.08537842,159.67,159.66,18.81779299]
[1749737672703,0.08537842,159.67,159.62,18.64964886]
[1749737672898,0.08537842,159.67,159.66,18.81779299]
[1749737673419,0.08537842,159.67,159.62,18.64964886]
[1749737673625,0.08537842,159.67,159.66,18.81779299]
[1749737673920,0.08537842,159.67,159.62,18.64964886]
[1749737674098,0.08537842,159.67,159.66,18.81779299]
[1749737677816,0.08537842,159.67,159.62,18.64964886]
[1749737678020,0.08537842,159.67,159.65,18.81779299]
[1749737678326,0.08537842,159.67,159.66,18.81779299]
[1749737679034,0.08537842,159.67,159.62,18.64964886]
[1749737679209,0.08537842,159.67,159.63,26.02]
[1749737679409,0.08537842,159.67,159.66,18.81779299]
[1749737679935,0.08537842,159.67,159.63,26.02]
[1749737680111,0.08537842,159.67,159.66,18.81779299]
[1749737680307,0.08537842,159.67,159.64,25.0]
[1749737680503,0.08537842,159.67,159.66,18.81779299]
[1749737680816,0.08537842,159.67,159.63,26.02]
[1749737681216,0.08537842,159.67,159.66,18.81779299]
[1749737683828,0.08537842,159.67,159.64,26.0]
[1749737684201,0.08537842,159.67,159.66,18.81779299]
[1749737686123,0.08537842,159.67,159.64,26.0]
[1749737686321,0.08537842,159.67,159.66,18.81779299]
[1749737687226,0.08537842,159.67,159.64,26.0]
[1749737687403,0.08537842,159.67,159.66,18.81779299]
[1749737689621,0.08537842,159.67,159.64,26.0]
[1749737689825,0.08537842,159.67,159.66,18.81779299]
[1749737690010,0.08537842,159.67,159.64,26.0]
[1749737690209,0.08537842,159.67,159.66,18.81779299]
[1749737691423,0.08537842,159.67,159.63,26.02]
[1749737691725,0.08537842,159.67,159.66,18.81779299]
[1749737696131,0.08537842,159.67,159.64,26.0]
[1749737696435,0.08537842,159.67,159.66,18.81779299]
[1749737698834,0.08537842,159.67,159.64,26.0]
[1749737699020,0.08537842,159.67,159.66,18.81779299]
[1749737699845,0.08537842,159.67,159.64,25.98]
[1749737700033,0.08537842,159.67,159.65,18.81779299]
[1749737700228,0.08537842,159.67,159.66,18.81779299]
[1749737700423,0.08537842,159.67,159.64,25.98]
[1749737700627,0.08537842,159.67,159.66,18.81779299]
[1749737702118,0.08537842,159.67,159.63,25.98]
[1749737702429,0.08537842,159.67,159.63,36.08]
[1749737702828,0.08537842,159.67,159.66,18.81779299]
[1749737704028,0.08537842,159.67,159.63,25.98]
[1749737704231,0.08537842,159.67,159.66,18.81779299]
[1749737705145,0.08537842,159.67,159.65,18.81779299]
[1749737705451,0.08537842,159.67,159.66,18.81779299]
[1749737705946,0.08537842,159.67,159.63,25.98]
[1749737706327,0.08537842,159.67,159.66,18.81779299]
[1749737706929,0.08537842,159.67,159.63,25.98]
[1749737707160,3.75845652,159.64,159.57,7.9847]
[1749737707326,3.75845652,159.64,159.6,18.81779299]
[1749737707531,22.57624951,159.64,159.57,7.9847]
[1749737707741,22.57624951,159.64,159.59,18.81779299]
[1749737708055,22.57624951,159.64,159.52,39.18560894]
[1749737708056,18.81779299,159.61,159.53,8.158]
[1749737708356,18.81779299,159.59,159.53,26.06]
[1749737708542,18.81779299,159.59,159.52,18.64964886]
[1749737708851,19.10211613,159.6,159.55,18.81779299]
[1749737709357,22.57742705,159.59,159.52,26.06]
[1749737709551,22.57742705,159.59,159.54,18.81779299]
[1749737710045,22.57742705,159.59,159.55,18.81779299]
[1749737710274,18.81779299,159.58,159.5,44.64964886]
[1749737710460,18.81779299,159.58,159.51,26.08]
[1749737710824,18.81779299,159.58,159.53,18.81779299]
[1749737711125,18.81779299,159.58,159.51,26.08]
[1749737711327,3.76010528,159.57,159.51,26.08]
[1749737711639,3.76010528,159.57,159.53,18.81779299]
[1749737711827,3.76010528,159.57,159.52,18.81779299]
[1749737712019,22.57789827,159.57,159.53,18.81779299]
[1749737712225,22.57789827,159.57,159.5,52.08]
[1749737712534,22.57789827,159.57,159.53,18.81779299]
[1749737713260,13.15881534,159.59,159.53,18.81779299]
[1749737713460,19.10211613,159.57,159.5,26.0]
[1749737713658,19.10211613,159.57,159.52,18.81779299]
[1749737713949,18.81779299,159.55,159.5,18.81779299]
[1749737714732,0.28432314,159.57,159.51,18.81779299]
[1749737715134,18.81779299,159.55,159.51,18.81779299]
[1749737715539,3.76034093,159.56,159.51,18.81779299]
[1749737715739,18.81779299,159.55,159.49,8.158]
[1749737715943,18.81779299,159.55,159.51,18.81779299]
[1749737716265,18.81779299,159.55,159.49,8.158]
[1749737716457,18.81779299,159.55,159.51,18.81779299]
[1749737716957,22.57854712,159.55,159.51,18.81779299]
[1749737717168,3.76075413,159.55,159.52,18.81779299]
[1749737718041,3.76075413,159.55,159.49,8.158]
[1749737718256,3.76075413,159.55,159.51,18.81779299]
[1749737718465,3.76075413,159.55,159.52,18.81779299]
[1749737718667,26.0,159.59,159.54,18.81779299]
[1749737718888,26.0,159.59,159.55,18.81779299]
[1749737719168,3.75963406,159.59,159.56,18.81779299]
[1749737719352,22.57695594,159.61,159.57,18.81779299]
[1749737719675,3.75916295,159.61,159.57,18.81779299]
[1749737719971,22.57695594,159.61,159.57,18.81779299]
[1749737720137,22.57695594,159.61,159.56,18.81779299]
[1749737720552,0.28432314,159.6,159.56,18.81779299]
[1749737720756,0.28432314,159.6,159.57,18.81779299]
[1749737721770,4.043814,159.6,159.52,44.87779299]
[1749737722061,4.043814,159.6,159.57,18.81779299]
[1749737723762,4.043814,159.6,159.56,18.81779299]
[1749737724773,18.81779299,159.58,159.53,18.81779299]
[1749737725140,0.28432314,159.57,159.53,18.81779299]
[1749737725553,19.10211613,159.57,159.52,18.81779299]
[1749737726153,19.10211613,159.57,159.5,26.06]
[1749737726350,0.28432314,159.55,159.49,8.158]
[1749737726560,0.28432314,159.55,159.51,18.81779299]
[1749737726860,3.76081233,159.54,159.51,18.81779299]
[1749737727639,4.04497654,159.55,159.52,18.81779299]
[1749737727835,0.28432314,159.55,159.52,18.81779299]
[1749737728061,4.04493479,159.55,159.51,18.81779299]
[1749737728758,22.86272778,159.55,159.5,18.81779299]
[1749737729167,4.04493479,159.55,159.51,18.81779299]
[1749737729852,22.86272778,159.55,159.5,18.81779299]
[1749737730757,4.04493479,159.55,159.51,18.81779299]
[1749737731563,4.04475556,159.56,159.52,18.81779299]
[1749737731867,3.76043242,159.56,159.53,18.81779299]
[1749737732072,152.86019119,159.57,159.53,18.81779299]
[1749737732372,0.28432314,159.56,159.53,18.81779299]
[1749737732965,152.86019119,159.57,159.53,18.81779299]
[1749737733575,149.1,159.57,159.53,18.81779299]
[1749737733891,152.86015289,159.57,159.53,18.81779299]
[1749737734257,149.1,159.57,159.56,18.81779299]
[1749737734458,18.81779299,159.61,159.56,18.81779299]
[1749737734651,18.81779299,159.6,159.53,26.12]
[1749737734863,18.81779299,159.6,159.56,18.81779299]
[1749737735167,18.81779299,159.6,159.53,26.12]
[1749737735168,3.75963406,159.59,159.53,26.12]
[1749737735368,26.0,159.59,159.56,18.81779299]
[1749737735552,26.0,159.59,159.57,18.81779299]
[1749737736184,26.0,159.6,159.53,26.12]
[1749737736476,29.75940985,159.6,159.57,18.81779299]
[1749737736992,29.75940985,159.6,159.53,26.12]
[1749737737275,29.75940985,159.6,159.56,18.81779299]
[1749737737853,48.57720284,159.6,159.56,18.81779299]
[1749737738972,0.28432314,159.59,159.55,18.81779299]
[1749737739273,22.57766264,159.58,159.53,44.93779299]
[1749737739478,22.57766264,159.58,159.53,18.81779299]
[1749737739857,3.75986965,159.58,159.54,18.81779299]
[1749737740881,0.28432314,159.57,159.53,18.81779299]
[1749737741258,4.04461199,159.57,159.53,18.81779299]
[1749737741461,18.81779299,159.56,159.49,8.158]
[1749737741654,19.10211613,159.55,159.5,18.81779299]
[1749737741878,19.10211613,159.55,159.49,8.158]
[1749737741879,0.28432314,159.55,159.51,18.81779299]
[1749737742067,19.10211613,159.55,159.49,34.238]
[1749737742375,0.28432314,159.55,159.51,18.81779299]
[1749737742787,0.28432314,159.55,159.49,34.238]
[1749737742978,0.28432314,159.55,159.51,18.81779299]
[1749737743482,4.04512689,159.55,159.51,18.81779299]
[1749737744482,4.04512689,159.55,159.52,18.81779299]
[1749737744893,4.04512689,159.55,159.51,18.81779299]
[1749737747284,4.04512689,159.55,159.49,34.218]
[1749737747485,4.04512689,159.55,159.51,18.81779299]
[1749737747676,4.04512689,159.55,159.49,34.218]
[1749737747879,22.86291988,159.55,159.5,18.81779299]
[1749737748096,22.86291988,159.55,159.51,18.81779299]
[1749737748612,22.86291988,159.55,159.5,18.81779299]
[1749737748823,4.04512689,159.55,159.5,18.81779299]
[1749737749105,4.04512689,159.55,159.49,8.158]
[1749737749106,19.10211613,159.53,159.49,1.5281]
[1749737749593,3.76128385,159.52,159.49,20.34589299]
[1749737750412,4.04547344,159.53,159.49,20.34589299]
[1749737750705,4.04547344,159.53,159.49,1.5281]
[1749737750922,178.8606436,159.55,159.51,18.81779299]